bitfinex-derivatives/quotes_BTCF0:USTF0_20230701
["timestamp","ask_amount","ask_price","bid_price","bid_amount"]
[1688219273857,0.019613,30594.0,30593.0,0.64508533]
[1688219274768,0.019613,30594.0,30593.0,0.66331502]
[1688219274969,0.019613,30594.0,30593.0,0.64508533]
[1688219276063,0.019613,30594.0,30593.0,0.66331502]
[1688219277369,0.019613,30594.0,30593.0,0.64508533]
[1688219279268,0.019613,30594.0,30593.0,0.66331502]
[1688219280169,0.019613,30594.0,30593.0,0.64508533]
[1688219280477,0.019613,30594.0,30593.0,0.66331502]
[1688219280964,0.019613,30594.0,30593.0,0.64508533]
[1688219281276,0.019613,30594.0,30593.0,0.62623588]
[1688219282159,0.266813,30594.0,30593.0,0.00032188]
[1688219282971,0.627613,30594.0,30593.0,0.00032188]
[1688219283187,0.71214932,30594.0,30593.0,0.00032188]
[1688219283367,0.71214932,30594.0,30593.0,0.01993688]
[1688219283963,0.627613,30594.0,30593.0,0.01993688]
[1688219285068,0.266813,30594.0,30593.0,0.01993688]
[1688219285782,0.35134549,30594.0,30593.0,0.01993688]
[1688219286081,0.35134549,30594.0,30593.0,0.62603688]
[1688219286082,0.266813,30594.0,30593.0,0.62603688]
[1688219286279,0.266813,30594.0,30593.0,0.66311602]
[1688219286768,0.266813,30594.0,30593.0,0.64488633]
[1688219287175,0.266813,30594.0,30593.0,0.66311602]
[1688219287375,0.266813,30594.0,30593.0,0.64488633]
[1688219288369,0.266813,30594.0,30593.0,0.66311602]
[1688219288967,0.266813,30594.0,30593.0,0.64488633]
[1688219289164,0.35134537,30594.0,30593.0,0.64488633]
[1688219289769,0.35134537,30594.0,30593.0,0.62603688]
[1688219290679,0.35134537,30594.0,30593.0,0.26523688]
[1688219291684,0.35134537,30594.0,30593.0,0.28408633]
[1688219292278,0.2472,30594.0,30593.0,0.28408633]
[1688219292671,0.266815,30594.0,30593.0,0.28408633]
[1688219293068,0.35134563,30594.0,30593.0,0.26523688]
[1688219293272,0.266815,30594.0,30593.0,0.26523688]
[1688219295375,0.35135215,30594.0,30593.0,0.26523688]
[1688219301980,0.266815,30594.0,30593.0,0.26523688]
[1688219303680,0.35135403,30594.0,30593.0,0.26523688]
[1688219303987,0.266815,30594.0,30593.0,0.26523688]
[1688219305487,0.35135489,30594.0,30593.0,0.26523688]
[1688219306493,0.266815,30594.0,30593.0,0.26523688]
[1688219308291,0.3513545,30594.0,30593.0,0.26523688]
[1688219309593,0.3511545,30594.0,30593.0,0.01993688]
[1688219327498,0.7119545,30594.0,30593.0,0.01993688]
[1688219335695,0.7119545,30594.0,30593.0,0.00032188]
[1688219338998,0.3511545,30594.0,30593.0,0.00032188]
[1688219339199,0.7119545,30594.0,30593.0,0.00032188]
[1688219340106,0.3511545,30594.0,30593.0,0.00032188]
[1688219340399,0.7119545,30594.0,30593.0,0.00032188]
[1688219341696,1.7119545,30594.0,30593.0,0.00032188]
[1688219341899,0.2472,30592.0,30587.0,0.2472]
[1688219342103,0.2472,30592.0,30589.0,0.3154]
[1688219342104,0.4649555,30591.0,30589.0,0.3154]
[1688219342304,0.3317395,30590.0,30587.0,0.019619]
[1688219342501,0.3513565,30589.0,30587.0,0.019619]
[1688219342705,0.3513565,30589.0,30587.0,0.335019]
[1688219342902,0.9576565,30589.0,30584.0,0.0004904]
[1688219343107,0.608,30585.0,30584.0,0.0004904]
[1688219343304,0.608,30585.0,30580.0,0.019623]
[1688219343305,0.2472,30583.0,30580.0,0.019623]
[1688219343512,0.2472,30581.0,30580.0,0.335023]
[1688219343809,0.266822,30581.0,30580.0,0.335023]
[1688219344210,0.266822,30581.0,30580.0,0.3154]
[1688219346815,0.266822,30581.0,30580.0,0.335023]
[1688219348207,0.266822,30581.0,30580.0,0.3154]
[1688219350111,0.266822,30581.0,30577.0,0.00049051]
[1688219350305,0.266822,30581.0,30577.0,0.30499051]
[1688219350306,0.2472,30578.0,30577.0,0.30499051]
[1688219350505,0.266823,30578.0,30577.0,0.32461451]
[1688219353821,0.266823,30578.0,30577.0,0.30499051]
[1688219354517,0.266823,30578.0,30577.0,0.32461451]
[1688219354907,0.296259,30579.0,30577.0,0.57011451]
[1688219355207,0.2472,30579.0,30578.0,0.265523]
[1688219355414,0.266823,30579.0,30578.0,0.265523]
[1688219356721,0.266823,30579.0,30578.0,0.27930255]
[1688219357813,0.266823,30579.0,30578.0,0.27910633]
[1688219360123,0.2472,30579.0,30578.0,0.27910633]
[1688219360326,0.2472,30579.0,30578.0,0.29733602]
[1688219360827,0.266823,30579.0,30578.0,0.27910633]
[1688219367216,0.266823,30579.0,30578.0,0.29795578]
[1688219369235,0.266823,30579.0,30578.0,0.27910633]
[1688219370632,0.266823,30579.0,30578.0,0.29795578]
[1688219372534,0.266823,30579.0,30578.0,0.31618547]
[1688219373747,0.266823,30579.0,30578.0,0.29795578]
[1688219373939,0.266823,30579.0,30578.0,0.27910633]
[1688219374528,0.266623,30579.0,30578.0,0.03340255]
[1688219378536,0.266623,30579.0,30578.0,0.052252]
[1688219380330,0.08477158,30581.0,30578.0,0.052252]
[1688219380331,0.33197158,30581.0,30578.0,0.299452]
[1688219380530,0.33197158,30581.0,30580.0,0.6071]
[1688219380734,0.33197158,30581.0,30580.0,0.626722]
[1688219380933,0.33197158,30581.0,30580.0,0.65871714]
[1688219381134,0.33197158,30581.0,30580.0,0.67756659]
[1688219381333,0.27310058,30581.0,30580.0,0.67756659]
[1688219381727,0.2472,30581.0,30580.0,0.67756659]
[1688219381933,0.02010951,30584.0,30580.0,0.67756659]
[1688219382234,0.02010951,30584.0,30583.0,0.62592]
[1688219382444,0.02010951,30584.0,30583.0,0.26512]
[1688219382627,0.02010951,30584.0,30583.0,0.27888445]
[1688219382828,0.04661951,30584.0,30583.0,0.27888445]
[1688219383130,0.02010951,30584.0,30583.0,0.27888445]
[1688219384136,0.02010951,30584.0,30583.0,0.2977339]
[1688219384634,0.26730951,30584.0,30583.0,0.2988339]
[1688219386041,0.35187341,30584.0,30583.0,0.31706359]
[1688219386635,0.00049051,30584.0,30583.0,0.67716359]
[1688219386838,0.30282314,30585.0,30583.0,0.67716359]
[1688219387142,0.30282314,30585.0,30584.0,0.2458]
[1688219387335,0.30282314,30585.0,30584.0,0.30249814]
[1688219387640,0.02667715,30585.0,30584.0,0.3108268]
[1688219387850,0.058855,30586.0,30584.0,0.3108268]
[1688219388040,0.058855,30586.0,30585.0,0.30389814]
[1688219388233,0.14341338,30586.0,30585.0,0.28566845]
[1688219388435,0.14341338,30586.0,30585.0,0.27514721]
[1688219389041,0.14341338,30586.0,30585.0,0.59474721]
[1688219390041,0.16909909,30586.0,30585.0,0.59474721]
[1688219391137,0.16909909,30586.0,30585.0,0.63182635]
[1688219392550,0.16909909,30586.0,30585.0,0.61359666]
[1688219393740,0.16909909,30586.0,30585.0,0.63182635]
[1688219393942,0.16909909,30586.0,30585.0,0.61359666]
[1688219394446,0.41629909,30586.0,30585.0,0.61359666]
[1688219397054,0.33174071,30586.0,30585.0,0.61359666]
[1688219397255,0.33174071,30586.0,30585.0,0.63182635]
[1688219397455,0.33174071,30586.0,30585.0,0.61359666]
[1688219397853,0.33174071,30586.0,30585.0,0.63182635]
[1688219398157,0.33174071,30586.0,30585.0,0.61359666]
[1688219398546,0.41629874,30586.0,30585.0,0.61359666]
[1688219399853,0.41629874,30586.0,30585.0,0.32792821]
[1688219400051,0.41629874,30586.0,30585.0,0.25552821]
[1688219400944,0.416124,30586.0,30585.0,0.25552821]
[1688219404157,0.776924,30586.0,30585.0,0.00832821]
[1688219404948,0.2472,30583.0,30579.0,0.019622]
[1688219405147,0.2453,30580.0,30579.0,0.019622]
[1688219405360,0.264922,30580.0,30579.0,0.019622]
[1688219406057,0.264922,30580.0,30579.0,0.02462625]
[1688219407868,0.264922,30580.0,30579.0,0.00500425]
[1688219408370,0.264922,30580.0,30578.0,0.590123]
[1688219408566,0.019622,30580.0,30579.0,0.00467277]
[1688219408762,0.266822,30580.0,30579.0,0.00467277]
[1688219408966,0.266822,30580.0,30578.0,0.590123]
[1688219409171,0.247,30579.0,30578.0,0.590123]
[1688219409363,0.266622,30579.0,30578.0,0.590123]
[1688219410466,0.266622,30579.0,30578.0,0.019623]
[1688219411570,0.266622,30579.0,30578.0,0.266823]
[1688219412675,0.266622,30579.0,30578.0,0.27204968]
[1688219413177,0.266622,30579.0,30578.0,0.29089913]
[1688219414577,0.266822,30579.0,30578.0,0.29089913]
[1688219414761,0.266822,30579.0,30578.0,0.30912882]
[1688219415162,0.266822,30579.0,30578.0,0.30892902]
[1688219415364,0.266822,30579.0,30578.0,0.27184988]
[1688219420179,0.2472,30579.0,30578.0,0.27184988]
[1688219420369,0.27614599,30581.0,30578.0,0.28837957]
[1688219420672,0.27614599,30581.0,30580.0,0.6074]
[1688219420880,0.27614599,30581.0,30580.0,0.64525169]
[1688219421065,0.27614599,30581.0,30580.0,0.64800116]
[1688219421468,0.26731154,30582.0,30580.0,0.66685061]
[1688219421667,0.26731154,30582.0,30581.0,0.26412969]
[1688219421868,0.26731154,30582.0,30581.0,0.28375069]
[1688219422070,0.29303738,30582.0,30581.0,0.63110014]
[1688219423278,0.29303738,30582.0,30581.0,0.99190014]
[1688219424283,0.27341638,30582.0,30581.0,0.99190014]
[1688219424575,0.02621638,30582.0,30581.0,0.99190014]
[1688219432379,0.00049054,30582.0,30581.0,0.99190014]
[1688219432879,0.00084978,30582.0,30581.0,0.99190014]
[1688219433272,0.02047078,30582.0,30581.0,0.99190014]
[1688219435784,0.00084978,30582.0,30581.0,0.99190014]
[1688219440983,0.00084978,30582.0,30581.0,0.99624883]
[1688219452101,0.00084978,30582.0,30581.0,1.35704883]
[1688219453907,0.02615565,30585.0,30581.0,1.35704883]
[1688219454111,0.3268,30588.0,30584.0,0.627619]
[1688219454297,0.61306099,30591.0,30587.0,0.608]
[1688219454499,0.62656099,30591.0,30590.0,0.6061]
[1688219454707,0.71111338,30591.0,30590.0,0.64394469]
[1688219454899,0.71111338,30591.0,30590.0,0.64737507]
[1688219455098,0.38031338,30591.0,30590.0,0.64394469]
[1688219455312,0.38031338,30591.0,30590.0,0.66279414]
[1688219455608,0.10416739,30591.0,30590.0,0.66279414]
[1688219455805,0.10416739,30591.0,30590.0,0.99529414]
[1688219456011,0.59760923,30591.0,30590.0,0.99529414]
[1688219456413,0.62430514,30591.0,30590.0,0.99529414]
[1688219457609,0.60469014,30591.0,30590.0,0.99529414]
[1688219458011,0.62430514,30591.0,30590.0,0.597415]
[1688219461910,0.62461437,30591.0,30590.0,0.597415]
[1688219462314,0.62461437,30591.0,30590.0,0.264915]
[1688219464414,0.87161437,30591.0,30590.0,0.019615]
[1688219481627,0.87161437,30591.0,30587.0,0.00049034]
[1688219481823,0.6079,30588.0,30587.0,0.00049034]
[1688219482124,0.71206939,30588.0,30587.0,0.00049034]
[1688219482913,0.71237751,30588.0,30587.0,0.00049034]
[1688219486618,0.71237751,30588.0,30587.0,0.02010934]
[1688219496023,0.71237751,30588.0,30587.0,0.00049034]
[1688219500425,0.71237751,30588.0,30587.0,0.00332573]
[1688219502036,0.71237751,30588.0,30587.0,0.02294473]
[1688219504831,0.71237751,30588.0,30587.0,0.00332573]
[1688219505039,0.71237751,30588.0,30587.0,0.02294473]
[1688219509943,0.71237751,30588.0,30587.0,0.02382516]
[1688219510626,0.35157751,30588.0,30587.0,0.02382516]
[1688219510833,0.71237751,30588.0,30587.0,0.02382516]
[1688219513535,0.71237751,30588.0,30587.0,0.04267461]
[1688219513745,0.69276051,30588.0,30587.0,0.04267461]
[1688219515044,0.69276051,30588.0,30587.0,0.02382516]
[1688219515236,0.71237951,30588.0,30587.0,0.02382516]
[1688219525149,0.69276051,30588.0,30587.0,0.02382516]
[1688219525653,0.08486051,30588.0,30587.0,0.65005485]
[1688219525848,0.02669591,30591.0,30587.0,0.65005485]
[1688219526039,0.02669591,30591.0,30590.0,0.608]
[1688219526247,0.08455151,30592.0,30590.0,0.66469614]
[1688219526444,0.08455151,30592.0,30591.0,0.2459]
[1688219526648,0.08455151,30592.0,30591.0,0.2693973]
[1688219526859,0.5751988,30592.0,30591.0,0.2693973]
[1688219527457,0.5948148,30592.0,30591.0,0.2693973]
[1688219527950,0.8419148,30592.0,30591.0,0.0234973]
[1688219528751,0.8222988,30592.0,30591.0,0.0234973]
[1688219529553,0.8222988,30592.0,30591.0,0.3327973]
[1688219532760,0.8222988,30592.0,30591.0,0.35102699]
[1688219533553,0.8222988,30592.0,30591.0,0.3327973]
[1688219534343,0.8222988,30592.0,30591.0,0.35102699]
[1688219534548,0.8223988,30592.0,30591.0,0.5799973]
[1688219535455,0.8223988,30592.0,30591.0,0.59822699]
[1688219535755,0.8223988,30592.0,30591.0,0.5799973]
[1688219535963,0.8223988,30592.0,30591.0,0.61707644]
[1688219538060,0.8223988,30592.0,30591.0,0.61319614]
[1688219542763,0.8204988,30592.0,30591.0,0.61319614]
[1688219544463,0.5751988,30592.0,30591.0,0.61319614]
[1688219545559,0.5751988,30592.0,30591.0,0.97399614]
[1688219547565,0.5751988,30592.0,30591.0,0.95514669]
[1688219550761,0.5948138,30592.0,30591.0,0.95514669]
[1688219551161,0.5948138,30592.0,30591.0,0.59434669]
[1688219551670,0.5751988,30592.0,30591.0,0.59434669]
[1688219552262,0.5751988,30592.0,30591.0,0.61319614]
[1688219553972,0.49064729,30592.0,30591.0,0.61319614]
[1688219556267,0.5751949,30592.0,30591.0,0.61319614]
[1688219560264,0.5751949,30592.0,30591.0,0.97399614]
[1688219563265,0.5751949,30592.0,30591.0,0.936917]
[1688219563467,0.8420099,30592.0,30591.0,0.328917]
[1688219566576,0.8223949,30592.0,30591.0,0.328917]
[1688219567274,0.8420099,30592.0,30591.0,0.328917]
[1688219569280,0.8223949,30592.0,30591.0,0.328917]
[1688219570872,0.5751949,30592.0,30591.0,0.574817]
[1688219571072,0.5751949,30592.0,30591.0,0.935617]
[1688219571271,0.5751949,30592.0,30591.0,0.97269614]
[1688219576481,0.08491582,30592.0,30591.0,0.97269614]
[1688219577588,0.00036821,30592.0,30591.0,0.97269614]
[1688219578481,0.0849106,30592.0,30591.0,0.97269614]
[1688219578683,0.08491061,30592.0,30591.0,0.97269614]
[1688219580783,0.00049034,30594.0,30592.0,0.09147465]
[1688219580979,0.27614599,30598.0,30593.0,0.627615]
[1688219581179,0.27614599,30598.0,30597.0,0.608]
[1688219581486,0.00643026,30598.0,30597.0,0.66469114]
[1688219581886,0.51777337,30598.0,30597.0,0.99459114]
[1688219583288,0.54458631,30598.0,30597.0,0.99459114]
[1688219583782,0.60951197,30598.0,30597.0,0.99459114]
[1688219587185,0.62912297,30598.0,30597.0,0.99459114]
[1688219587379,0.69600485,30598.0,30597.0,0.99459114]
[1688219588481,0.60951197,30598.0,30597.0,0.99459114]
[1688219590076,0.62912297,30598.0,30597.0,0.99459114]
[1688219600006,0.54458631,30598.0,30597.0,0.99459114]
[1688219600206,0.52497531,30598.0,30597.0,0.99459114]
[1688219601108,0.60950517,30598.0,30597.0,0.99459114]
[1688219606320,0.11777306,30598.0,30597.0,0.99459114]
[1688219607913,0.11777261,30598.0,30597.0,0.99459114]
[1688219608115,0.0332432,30598.0,30597.0,0.99459114]
[1688219609213,0.03193129,30598.0,30597.0,0.99459114]
[1688219623127,0.03502972,30598.0,30597.0,0.99459114]
[1688219626926,0.03502972,30598.0,30597.0,0.66469114]
[1688219627127,0.05464072,30598.0,30597.0,0.380412]
[1688219627333,0.30184072,30598.0,30597.0,0.380412]
[1688219627831,0.3863711,30598.0,30597.0,0.380412]
[1688219628431,0.05955235,30598.0,30597.0,0.41749114]
[1688219628621,0.08750731,30598.0,30597.0,0.41749114]
[1688219628825,0.08750731,30598.0,30597.0,0.39926145]
[1688219629317,0.08750731,30598.0,30597.0,0.41749114]
[1688219629731,0.11417389,30598.0,30597.0,0.41749114]
[1688219630331,0.36137389,30598.0,30597.0,0.39926145]
[1688219631235,0.36137389,30598.0,30597.0,0.41749114]
[1688219631433,0.36137389,30598.0,30597.0,0.39926145]
[1688219631929,0.36137389,30598.0,30597.0,0.41749114]
[1688219634436,0.11417389,30598.0,30597.0,0.66339114]
[1688219634626,0.11417389,30598.0,30597.0,0.64516145]
[1688219635527,0.11417389,30598.0,30597.0,0.626312]
[1688219637440,0.11417389,30598.0,30597.0,0.66339114]
[1688219638827,0.11417389,30598.0,30597.0,0.64516145]
[1688219639033,0.11417389,30598.0,30597.0,0.66339114]
[1688219648234,0.11417389,30598.0,30597.0,0.64516145]
[1688219648431,0.11417389,30598.0,30597.0,0.66339114]
[1688219650543,0.11417389,30598.0,30597.0,0.64516145]
[1688219650842,0.11417389,30598.0,30597.0,0.66339114]
[1688219651846,0.11417389,30598.0,30597.0,0.30259114]
[1688219654443,0.11417389,30598.0,30597.0,0.66339114]
[1688219655552,0.09456289,30598.0,30597.0,0.66339114]
[1688219656843,0.03501054,30598.0,30597.0,0.66339114]
[1688219662746,0.03501054,30598.0,30597.0,0.30259114]
[1688219662944,0.03501054,30598.0,30597.0,1.02419114]
[1688219664343,0.05462154,30598.0,30597.0,1.02419114]
[1688219664652,0.05462154,30598.0,30597.0,0.987112]
[1688219665249,0.05462154,30598.0,30597.0,0.64454169]
[1688219665469,0.05462154,30598.0,30597.0,0.66339114]
[1688219668854,0.13914974,30598.0,30597.0,0.66339114]
[1688219669160,0.13914974,30598.0,30597.0,0.64516145]
[1688219669452,0.13914974,30598.0,30597.0,0.626312]
[1688219670168,0.38634974,30598.0,30597.0,0.380412]
[1688219670958,0.38624974,30598.0,30597.0,0.625712]
[1688219673562,0.38634974,30598.0,30597.0,0.264912]
[1688219674963,0.36673874,30598.0,30597.0,0.28376145]
[1688219675556,0.36673874,30598.0,30597.0,0.30199114]
[1688219675764,0.38634974,30598.0,30597.0,0.30199114]
[1688219676464,0.30182154,30598.0,30597.0,0.264912]
[1688219677353,0.38635065,30598.0,30597.0,0.30199114]
[1688219677558,0.38635065,30598.0,30597.0,0.28376145]
[1688219678163,0.38635065,30598.0,30597.0,0.264912]
[1688219684572,0.13915065,30598.0,30597.0,0.264912]
[1688219684774,0.13915065,30598.0,30597.0,0.28376145]
[1688219685071,0.13915065,30598.0,30597.0,0.30199114]
[1688219685273,0.13915065,30598.0,30597.0,0.28376145]
[1688219685573,0.13915065,30598.0,30597.0,0.30199114]
[1688219686778,0.13915065,30598.0,30597.0,0.28376145]
[1688219686965,0.13915065,30598.0,30597.0,0.30199114]
[1688219687366,0.13915065,30598.0,30597.0,0.264912]
[1688219689877,0.13915065,30598.0,30597.0,0.28376145]
[1688219690469,0.13915065,30598.0,30597.0,0.264912]
[1688219692168,0.13915065,30598.0,30597.0,0.28314169]
[1688219692576,0.13915065,30598.0,30597.0,0.30199114]
[1688219693080,0.13915065,30598.0,30597.0,0.28376145]
[1688219693383,0.13915065,30598.0,30597.0,0.30199114]
[1688219693782,0.13915065,30598.0,30597.0,0.28376145]
[1688219696882,0.13915065,30598.0,30597.0,0.264912]
[1688219700600,0.38635065,30598.0,30597.0,0.019612]
[1688219701591,0.39276484,30598.0,30597.0,0.019612]
[1688219702995,0.39276484,30598.0,30596.0,0.2458]
[1688219703195,0.32982911,30597.0,30596.0,0.24564951]
[1688219703407,0.34944111,30597.0,30596.0,0.24564951]
[1688219703789,0.34944111,30597.0,30595.0,0.265413]
[1688219703790,0.35134111,30597.0,30595.0,0.265413]
[1688219703991,0.08452911,30596.0,30595.0,0.265413]
[1688219704289,0.10414211,30596.0,30595.0,0.265413]
[1688219704486,0.35134211,30596.0,30595.0,0.019613]
[1688219705594,0.36179675,30596.0,30595.0,0.019613]
[1688219709705,0.36179675,30596.0,30594.0,0.24769023]
[1688219709903,0.247,30595.0,30594.0,0.24769023]
[1688219710097,0.266613,30595.0,30594.0,0.26730423]
[1688219710402,0.27707076,30595.0,30594.0,0.26730423]
[1688219714386,0.03007076,30595.0,30594.0,0.28485368]
[1688219717506,0.01045776,30595.0,30594.0,0.28485368]
[1688219717804,0.01045776,30595.0,30594.0,0.30308337]
[1688219719508,0.01045776,30595.0,30594.0,0.66388337]
[1688219720310,0.049033,30597.0,30594.0,0.66388337]
[1688219720509,0.049033,30597.0,30596.0,0.2463]
[1688219720714,0.07569758,30598.0,30596.0,0.265913]
[1688219720899,0.07569758,30598.0,30597.0,0.6066]
[1688219721100,0.16022634,30598.0,30597.0,0.626212]
[1688219721396,0.16022634,30598.0,30597.0,0.941712]
[1688219722011,0.16022634,30598.0,30597.0,0.97879114]
[1688219722403,0.16022634,30598.0,30597.0,0.941712]
[1688219722912,0.40732634,30598.0,30597.0,0.695912]
[1688219723306,0.40732634,30598.0,30597.0,0.3155]
[1688219723501,0.40732634,30598.0,30596.0,0.2472]
[1688219723706,0.35134076,30597.0,30596.0,0.2472]
[1688219731325,0.35127861,30597.0,30596.0,0.2472]
[1688219734525,0.35127861,30597.0,30596.0,0.019613]
[1688219735628,0.36178124,30597.0,30596.0,0.019613]
[1688219738325,0.36178124,30597.0,30595.0,0.3064]
[1688219738617,0.33166661,30596.0,30595.0,0.326013]
[1688219738823,0.36178438,30596.0,30595.0,0.326013]
[1688219739319,0.36178438,30596.0,30595.0,0.3064]
[1688219741228,0.36178438,30596.0,30595.0,0.326013]
[1688219743833,0.27731777,30596.0,30595.0,0.326013]
[1688219744332,0.31301066,30597.0,30595.0,0.41748765]
[1688219744639,0.02749559,30596.0,30595.0,0.39925796]
[1688219744824,0.27459559,30596.0,30595.0,0.38040851]
[1688219745023,0.27459559,30596.0,30595.0,0.326013]
[1688219746131,0.02749637,30596.0,30595.0,0.34486245]
[1688219746526,0.00580592,30596.0,30595.0,0.326013]
[1688219746728,0.02541892,30596.0,30595.0,0.34486245]
[1688219746923,0.18828547,30599.0,30596.0,0.01822969]
[1688219747126,0.296233,30597.0,30596.0,0.019612]
[1688219747422,0.3807657,30597.0,30596.0,0.019612]
[1688219752031,0.38364604,30597.0,30596.0,0.019612]
[1688219752724,0.00288034,30597.0,30596.0,0.03846145]
[1688219752931,0.29911334,30597.0,30596.0,0.03846145]
[1688219753235,0.296233,30597.0,30596.0,0.038612]
[1688219753637,0.55493674,30599.0,30596.0,0.038612]
[1688219753841,0.296233,30597.0,30596.0,0.07569114]
[1688219754044,0.296233,30597.0,30596.0,0.05746145]
[1688219754238,0.296233,30597.0,30596.0,0.03846145]
[1688219754638,0.296233,30597.0,30596.0,0.019612]
[1688219763643,0.296233,30597.0,30596.0,0.03784169]
[1688219763951,0.296233,30597.0,30596.0,0.019612]
[1688219767645,0.296233,30597.0,30596.0,0.03763116]
[1688219767936,0.296233,30597.0,30596.0,0.01940147]
[1688219774744,1.296233,30597.0,30594.0,0.00049023]
[1688219774946,1.296233,30597.0,30588.0,0.065393]
[1688219774947,1.0,30594.0,30588.0,0.065393]
[1688219775144,0.3608,30590.0,30589.0,0.3097]
[1688219775351,0.627517,30590.0,30589.0,0.31505987]
[1688219775549,0.627517,30590.0,30589.0,0.3097]
[1688219775857,0.627517,30590.0,30589.0,0.31836741]
[1688219776149,0.54721187,30590.0,30589.0,0.31836741]
[1688219776646,0.54806165,30590.0,30589.0,0.31836741]
[1688219777350,0.54806165,30590.0,30589.0,0.00781763]
[1688219777647,0.54806165,30590.0,30586.0,0.36129036]
[1688219777648,0.54806165,30590.0,30586.0,0.68959036]
[1688219777842,0.266818,30587.0,30586.0,0.68959036]
[1688219778052,0.266818,30587.0,30586.0,0.36129036]
[1688219778746,0.266818,30587.0,30586.0,0.00049036]
[1688219778959,0.627618,30587.0,30586.0,0.00049036]
[1688219782456,0.266818,30587.0,30586.0,0.00049036]
[1688219782745,0.266818,30587.0,30586.0,0.02010936]
[1688219783742,0.266818,30587.0,30586.0,0.00049036]
[1688219784654,0.627618,30587.0,30586.0,0.00049036]
[1688219784954,0.627618,30587.0,30586.0,0.01026613]
[1688219786857,0.65317044,30587.0,30586.0,0.01026613]
[1688219789444,0.65317044,30587.0,30586.0,0.01017415]
[1688219789648,0.65317044,30587.0,30586.0,0.02979315]
[1688219790357,0.65317044,30587.0,30586.0,0.02965995]
[1688219792259,0.65317044,30587.0,30586.0,0.01004095]
[1688219792456,0.65317044,30587.0,30583.0,0.049051]
[1688219792646,0.40597044,30587.0,30586.0,0.00733303]
[1688219792848,0.40597044,30587.0,30583.0,0.049051]
[1688219792849,0.65317044,30587.0,30583.0,0.049051]
[1688219793048,0.2472,30584.0,30583.0,0.049051]
[1688219793253,0.26682,30584.0,30582.0,0.336619]
[1688219793456,0.2472,30583.0,30582.0,0.336619]
[1688219793645,0.266821,30583.0,30582.0,0.336619]
[1688219794159,0.20401738,30583.0,30582.0,0.336619]
[1688219795747,0.20401738,30583.0,30582.0,0.35546845]
[1688219797054,0.20401738,30583.0,30582.0,0.336619]
[1688219800065,0.20401738,30583.0,30582.0,0.34398082]
[1688219802262,0.18439638,30583.0,30582.0,0.59118082]
[1688219802767,0.18439638,30583.0,30582.0,0.62825996]
[1688219803867,0.21031921,30583.0,30582.0,0.62825996]
[1688219804463,0.2472,30585.0,30582.0,0.62765996]
[1688219804670,0.2472,30585.0,30584.0,0.62672]
[1688219804866,0.2472,30585.0,30584.0,0.66379914]
[1688219805066,0.2472,30585.0,30584.0,0.67114177]
[1688219805264,0.2472,30585.0,30584.0,0.67107517]
[1688219807178,0.0193,30585.0,30584.0,0.67107517]
[1688219808880,0.0193,30585.0,30584.0,0.69007517]
[1688219809174,0.0193,30585.0,30584.0,0.71007517]
[1688219809374,0.0193,30585.0,30584.0,0.69007517]
[1688219809568,0.0193,30585.0,30584.0,0.67107517]
[1688219812973,0.00049047,30586.0,30584.0,0.67027517]
[1688219813165,0.00049047,30586.0,30585.0,0.28297914]
[1688219813367,0.00049047,30586.0,30585.0,0.66339814]
[1688219813570,0.00049047,30586.0,30585.0,0.67073542]
[1688219813874,0.00049047,30586.0,30585.0,0.99603542]
[1688219820380,0.02010847,30586.0,30585.0,0.99603542]
[1688219821176,0.00049047,30586.0,30585.0,0.99603542]
[1688219841080,0.00049047,30586.0,30585.0,1.35683542]
[1688219846591,0.0003918,30586.0,30585.0,1.35397792]
[1688219847592,0.049034,30592.0,30585.0,1.35397792]
[1688219847593,0.3253,30594.0,30589.0,0.05]
[1688219847896,0.6261,30594.0,30593.0,0.6074]
[1688219848193,0.2472,30595.0,30593.0,0.66409214]
[1688219848489,0.01961,30597.0,30595.0,0.019611]
[1688219848792,0.058831,30598.0,30595.0,0.019611]
[1688219848793,0.05689742,30598.0,30596.0,0.380411]
[1688219849000,0.26681,30597.0,30596.0,0.380411]
[1688219849288,0.7544695,30597.0,30596.0,0.41749014]
[1688219851995,0.7544695,30597.0,30596.0,0.39926045]
[1688219853092,0.7544695,30597.0,30596.0,0.41749014]
[1688219853893,0.7544695,30597.0,30596.0,0.39926045]
[1688219854395,0.7544695,30597.0,30596.0,0.380411]
[1688219857390,0.7544695,30597.0,30596.0,0.3608]
[1688219857893,0.7544695,30597.0,30596.0,0.380411]
[1688219858288,0.7544695,30597.0,30596.0,0.3608]
[1688219858488,0.7544695,30597.0,30593.0,0.05932525]
[1688219858682,0.2472,30594.0,30593.0,0.05932525]
[1688219858883,0.266812,30594.0,30593.0,0.05932525]
[1688219859591,0.31098385,30595.0,30593.0,0.05932525]
[1688219859795,0.266812,30594.0,30593.0,0.05932525]
[1688219860097,0.29997658,30595.0,30593.0,0.05932525]
[1688219860298,0.266812,30594.0,30593.0,0.05932525]
[1688219860500,0.23992907,30595.0,30593.0,0.0781747]
[1688219860704,0.266812,30594.0,30593.0,0.0781747]
[1688219860906,0.266812,30594.0,30593.0,0.05932525]
[1688219871407,0.266812,30594.0,30593.0,0.0781747]
[1688219872005,0.266812,30594.0,30593.0,0.09640439]
[1688219872306,0.266812,30594.0,30593.0,0.0781747]
[1688219872809,0.2472,30594.0,30593.0,0.0781747]
[1688219874301,0.2472,30594.0,30593.0,0.42012525]
[1688219874609,0.266812,30594.0,30593.0,0.42012525]
[1688219874991,0.266812,30594.0,30593.0,0.43835494]
[1688219875204,0.266812,30594.0,30593.0,0.42012525]
[1688219875703,0.266812,30594.0,30593.0,0.43835494]
[1688219875904,0.266812,30594.0,30593.0,0.42012525]
[1688219876095,0.266812,30594.0,30593.0,0.43835494]
[1688219876511,0.266812,30594.0,30593.0,0.42012525]
[1688219876805,0.266812,30594.0,30593.0,0.43835494]
[1688219877206,0.266812,30594.0,30593.0,0.42012525]
[1688219879010,0.266812,30594.0,30593.0,0.43835494]
[1688219879208,0.2472,30594.0,30593.0,0.45720439]
[1688219880299,0.27340398,30595.0,30593.0,0.70440439]
[1688219880503,0.2472,30595.0,30594.0,0.30389114]
[1688219884402,0.266811,30595.0,30594.0,0.019612]
[1688219885012,0.266811,30595.0,30594.0,0.03784169]
[1688219885408,0.266811,30595.0,30594.0,0.019612]
[1688219887113,0.266811,30595.0,30594.0,0.03784169]
[1688219887713,0.266811,30595.0,30594.0,0.05669114]
[1688219889618,0.266811,30595.0,30594.0,0.03846145]
[1688219889820,0.266811,30595.0,30594.0,0.05669114]
[1688219890004,0.266811,30595.0,30594.0,0.03846145]
[1688219890509,0.266811,30595.0,30594.0,0.05669114]
[1688219890913,0.266811,30595.0,30594.0,0.019612]